bitfinex/quotes_SOLUSD_20250731
["timestamp","ask_amount","ask_price","bid_price","bid_amount"]
[1754003106287,5.91576087,173.68,173.65,41.08]
[1754003107009,6.60576087,173.68,173.65,41.08]
[1754003107296,5.91576087,173.68,173.65,41.08]
[1754003107499,5.91576087,173.67,173.65,41.08]
[1754003108075,6.60576087,173.66,173.62,16.78468397]
[1754003108285,6.60576087,173.66,173.63,41.06]
[1754003108678,5.91576087,173.66,173.63,41.06]
[1754003109208,5.91576087,173.67,173.63,41.77]
[1754003111004,72.8167386,173.71,173.63,41.77]
[1754003111005,0.64723741,173.7,173.64,17.49468397]
[1754003111171,0.64723741,173.7,173.65,0.71]
[1754003111493,7.25299828,173.7,173.65,6.62576087]
[1754003112182,5.91576087,173.69,173.65,0.71]
[1754003112994,0.69,173.68,173.64,22.70044484]
[1754003113195,0.64723741,173.67,173.63,41.06]
[1754003113474,6.60576087,173.66,173.61,6.62576087]
[1754003113679,6.60576087,173.66,173.62,57.98468397]
[1754003113892,1.33723741,173.65,173.62,41.2]
[1754003114200,5.91576087,173.66,173.62,41.2]
[1754003114503,0.64723741,173.66,173.62,47.11576087]
[1754003114679,147.6,173.69,173.62,47.11576087]
[1754003114680,147.6,173.69,173.65,5.91576087]
[1754003114913,147.6,173.69,173.66,6.62576087]
[1754003115973,147.6,173.69,173.66,0.71]
[1754003116210,147.6,173.69,173.66,6.62576087]
[1754003118603,148.29,173.69,173.65,47.11576087]
[1754003118798,0.64723741,173.68,173.65,41.2]
[1754003118997,6.60576087,173.67,173.63,16.78468397]
[1754003119200,0.64723741,173.68,173.64,6.62576087]
[1754003119915,147.6,173.69,173.65,6.62576087]
[1754003120084,147.6,173.69,173.68,5.91576087]
[1754003120498,147.6,173.69,173.67,5.91576087]
[1754003121909,147.6,173.69,173.68,5.91576087]
[1754003122288,147.6,173.69,173.68,6.62576087]
[1754003122626,147.6,173.69,173.68,5.91576087]
[1754003124321,147.6,173.69,173.68,6.62576087]
[1754003124810,0.69,173.75,173.69,16.78468397]
[1754003125014,0.64723741,173.74,173.71,5.91576087]
[1754003125217,1.33723741,173.75,173.69,17.49468397]
[1754003125416,1.33723741,173.75,173.71,5.91576087]
[1754003125916,0.69,173.74,173.71,5.91576087]
[1754003126603,0.69,173.74,173.72,5.91576087]
[1754003127693,0.69,173.77,173.73,5.91576087]
[1754003127894,42.47723741,173.79,173.75,5.91576087]
[1754003128094,0.69,173.78,173.75,5.91576087]
[1754003128391,1.33723741,173.8,173.77,5.91576087]
[1754003128614,0.69,173.79,173.77,5.91576087]
[1754003129719,189.43,173.81,173.78,5.91576087]
[1754003129937,189.43,173.81,173.75,1.28553956]
[1754003129938,148.29,173.81,173.79,5.91576087]
[1754003130318,8.81838258,173.84,173.8,5.91576087]
[1754003130319,0.69,173.84,173.8,5.91576087]
[1754003130530,7.25299828,173.83,173.76,41.69550644]
[1754003130703,5.91576087,173.8,173.75,5.91576087]
[1754003130903,1.33723741,173.79,173.75,5.91576087]
[1754003131128,0.69,173.78,173.75,5.91576087]
[1754003131693,0.69,173.78,173.76,5.91576087]
[1754003132635,0.64723741,173.77,173.74,5.91576087]
[1754003132926,0.69,173.76,173.73,16.78468397]
[1754003133117,7.25299828,173.75,173.72,41.1]
[1754003133303,5.91576087,173.73,173.69,23.41044484]
[1754003133623,6.56299828,173.77,173.72,5.91576087]
[1754003133926,7.25299828,173.77,173.72,6.62576087]
[1754003134420,0.64723741,173.78,173.73,0.7]
[1754003134623,0.64723741,173.78,173.74,6.61576087]
[1754003134937,0.71,173.77,173.74,5.91576087]
[1754003135298,0.71,173.77,173.73,5.91576087]
[1754003135897,0.64723741,173.76,173.72,6.61576087]
[1754003136114,6.62576087,173.76,173.72,16.78468397]
[1754003136418,0.64723741,173.78,173.73,6.61576087]
[1754003136419,7.27299828,173.78,173.73,6.61576087]
[1754003136616,0.64723741,173.79,173.75,5.91576087]
[1754003136813,1.35723741,173.79,173.75,5.91576087]
[1754003137621,0.71,173.78,173.74,5.91576087]
[1754003138103,7.27299828,173.77,173.72,23.40044484]
[1754003138305,6.62576087,173.76,173.71,5.91576087]
[1754003138629,0.71,173.76,173.72,22.70044484]
[1754003139118,0.71,173.75,173.72,5.91576087]
[1754003139313,6.62576087,173.74,173.69,47.71576087]
[1754003139521,6.62576087,173.74,173.7,16.78468397]
[1754003139726,0.71,173.74,173.71,5.91576087]
[1754003139936,6.56299828,173.76,173.71,6.61576087]
[1754003140117,0.64723741,173.76,173.72,5.91576087]
[1754003140313,1.35723741,173.76,173.72,6.61576087]
[1754003140513,1.35723741,173.76,173.7,16.78468397]
[1754003140715,1.35723741,173.76,173.72,5.91576087]
[1754003142333,0.64723741,173.76,173.73,5.91576087]
[1754003142504,0.64723741,173.78,173.75,5.91576087]
[1754003143508,147.6,173.8,173.76,5.91576087]
[1754003143805,0.64723741,173.79,173.75,6.61576087]
[1754003144117,148.31,173.8,173.76,5.91576087]
[1754003144313,147.6,173.8,173.77,5.91576087]
[1754003144627,147.6,173.8,173.77,6.61576087]
[1754003145130,147.6,173.8,173.78,5.91576087]
[1754003148418,1.35723741,173.79,173.76,5.91576087]
[1754003148729,0.71,173.78,173.76,5.91576087]
[1754003149138,0.71,173.78,173.73,0.7]
[1754003149316,148.31,173.8,173.76,5.91576087]
[1754003149521,148.31,173.8,173.77,5.91576087]
[1754003150438,148.31,173.8,173.76,5.91576087]
[1754003150744,1.35723741,173.79,173.76,5.91576087]
[1754003151214,0.71,173.79,173.76,5.91576087]
[1754003152017,147.6,173.8,173.76,5.91576087]
[1754003152225,148.31,173.8,173.76,5.91576087]
[1754003152443,148.31,173.8,173.77,5.91576087]
[1754003153837,148.31,173.8,173.75,0.7]
[1754003154028,0.71,173.79,173.77,5.91576087]
[1754003154416,147.6,173.8,173.77,5.91576087]
[1754003154624,148.31,173.8,173.77,5.91576087]
[1754003155316,1.35723741,173.79,173.76,5.91576087]
[1754003155521,5.91576087,173.77,173.71,5.91576087]
[1754003155828,5.91576087,173.73,173.68,5.91576087]
[1754003156028,0.71,173.72,173.68,5.91576087]
[1754003156321,6.62576087,173.74,173.69,5.91576087]
[1754003156542,7.27299828,173.74,173.7,5.91576087]
[1754003157037,0.71,173.73,173.7,5.91576087]
[1754003157218,0.64723741,173.74,173.71,5.91576087]
[1754003157422,0.64723741,173.74,173.7,6.61576087]
[1754003157720,0.64723741,173.74,173.71,5.91576087]
[1754003158440,6.62576087,173.73,173.68,5.91576087]
[1754003158635,0.64723741,173.72,173.68,16.78468397]
[1754003158813,0.71,173.71,173.68,16.78468397]
[1754003159431,40.94,173.77,173.68,22.70044484]
[1754003159432,6.62576087,173.73,173.68,22.70044484]
[1754003159627,0.71,173.72,173.68,22.70044484]
[1754003160215,0.71,173.72,173.68,23.40044484]
[1754003160527,5.91576087,173.75,173.7,5.91576087]
[1754003160732,0.64723741,173.74,173.7,6.61576087]
[1754003160927,147.6,173.8,173.73,5.91576087]
[1754003161119,147.6,173.8,173.71,0.7]
[1754003161120,42.29723741,173.79,173.75,5.91576087]
[1754003161450,0.71,173.78,173.75,5.91576087]
[1754003161634,0.71,173.77,173.71,16.78468397]
[1754003161846,1.35723741,173.79,173.76,5.91576087]
[1754003162026,147.6,173.8,173.78,5.91576087]
[1754003162647,147.6,173.8,173.76,5.91576087]
[1754003162943,0.71,173.79,173.76,5.91576087]
[1754003163241,1.35723741,173.79,173.76,5.91576087]
[1754003163444,5.91576087,173.77,173.7,0.7]
[1754003163738,5.91576087,173.77,173.64,6.35516274]
[1754003163739,5.91576087,173.74,173.71,16.78468397]
[1754003163926,5.91576087,173.74,173.7,16.78468397]
[1754003164244,0.71,173.74,173.7,22.70044484]
[1754003164543,0.71,173.74,173.71,5.91576087]
[1754003164848,6.57576087,173.77,173.72,5.91576087]
[1754003165032,7.22299828,173.76,173.71,5.91576087]
[1754003165358,0.66,173.75,173.71,5.91576087]
[1754003165524,0.66,173.75,173.72,5.91576087]
[1754003166022,7.22299828,173.77,173.73,5.91576087]
[1754003166221,6.56299828,173.77,173.72,5.91576087]
[1754003166444,0.66,173.76,173.72,5.91576087]
[1754003166649,0.64723741,173.77,173.73,6.57576087]
[1754003166817,0.64723741,173.77,173.74,5.91576087]
[1754003167014,0.64723741,173.78,173.73,0.66]
[1754003167244,6.57576087,173.77,173.72,5.91576087]
[1754003167547,1.30723741,173.76,173.72,5.91576087]
[1754003167742,0.66,173.75,173.71,5.91576087]
[1754003167958,5.91576087,173.72,173.68,16.78468397]
[1754003168323,0.66,173.72,173.68,22.70044484]
[1754003169033,0.64723741,173.74,173.7,5.91576087]
[1754003169232,0.64723741,173.74,173.7,6.57576087]
[1754003170028,1.30723741,173.74,173.7,5.91576087]
[1754003170326,0.64723741,173.74,173.7,6.57576087]
[1754003170524,5.91576087,173.74,173.69,22.70044484]
[1754003170722,0.66,173.73,173.69,16.78468397]
[1754003170939,0.66,173.73,173.69,25.54746358]
[1754003171724,10.07001702,173.72,173.66,0.66]
[1754003171923,8.76277961,173.7,173.65,25.54746358]
[1754003172222,10.07001702,173.72,173.67,8.76277961]
[1754003172432,10.07001702,173.72,173.67,9.42277961]
[1754003172632,0.64723741,173.72,173.68,9.42277961]
[1754003172837,9.41001702,173.73,173.68,9.42277961]
[1754003173038,0.66,173.72,173.68,9.42277961]
[1754003173451,1.30723741,173.71,173.66,9.42277961]
[1754003173756,10.07001702,173.71,173.66,9.42277961]
[1754003174931,1.30723741,173.71,173.66,9.42277961]
[1754003175131,10.07001702,173.71,173.66,9.42277961]
[1754003175333,1.30723741,173.71,173.67,8.76277961]
[1754003175535,1.30723741,173.71,173.66,0.66]
[1754003175833,1.30723741,173.71,173.67,8.76277961]
[1754003176371,1.30723741,173.71,173.65,16.78468397]
[1754003176372,9.42277961,173.7,173.65,16.78468397]
[1754003176531,9.42277961,173.7,173.65,25.54746358]
[1754003176730,9.42277961,173.7,173.65,26.20746358]
[1754003177134,8.76277961,173.68,173.64,41.14]
[1754003177354,0.66,173.67,173.64,41.14]
[1754003177544,1.30723741,173.67,173.63,8.76277961]
[1754003177951,9.41001702,173.67,173.62,0.66]
[1754003178144,0.66,173.66,173.59,9.42277961]
[1754003178345,0.64723741,173.65,173.6,16.78468397]
[1754003178555,0.64723741,173.65,173.56,41.5]
[1754003178859,8.76277961,173.59,173.53,8.76277961]
[1754003179062,8.76277961,173.59,173.53,0.66]
[1754003179063,9.41001702,173.58,173.53,0.66]
[1754003179359,9.41001702,173.58,173.48,17.314518]
[1754003179360,7.06834842,173.58,173.5,0.66]
[1754003179537,7.06834842,173.58,173.5,9.42277961]
[1754003179538,0.64723741,173.58,173.5,9.42277961]
[1754003179738,0.66,173.57,173.5,9.42277961]
[1754003179944,0.64723741,173.56,173.5,9.42277961]
[1754003180142,0.64723741,173.56,173.51,16.78468397]
[1754003180339,1.30723741,173.56,173.51,16.78468397]
[1754003180965,1.30723741,173.56,173.5,8.76277961]
[1754003180966,0.66,173.55,173.5,8.76277961]
[1754003181255,0.64723741,173.55,173.51,9.42277961]
[1754003182467,0.64723741,173.55,173.51,0.66]
[1754003182658,0.66,173.54,173.5,8.76277961]
[1754003183157,9.41001702,173.55,173.5,9.42277961]
[1754003183365,10.07001702,173.55,173.5,9.42277961]
[1754003183559,0.64723741,173.55,173.51,8.76277961]
[1754003183769,0.64723741,173.55,173.51,9.42277961]
[1754003184072,10.07001702,173.57,173.52,9.42277961]
[1754003184436,10.07001702,173.57,173.52,7.92277961]
[1754003185336,8.76277961,173.56,173.52,0.66]
[1754003186169,8.76277961,173.53,173.48,25.54746358]
[1754003186663,9.42277961,173.53,173.48,25.54746358]
[1754003186967,9.42277961,173.53,173.48,26.20746358]
[1754003188138,0.66,173.53,173.49,8.76277961]
[1754003188459,0.66,173.52,173.48,16.78468397]
[1754003188670,9.41001702,173.51,173.4,40.50224753]
[1754003188871,1.30723741,173.51,173.47,8.76277961]
[1754003189056,1.30723741,173.54,173.5,8.76277961]
[1754003189553,10.07001702,173.54,173.49,8.76277961]
[1754003189946,0.66,173.53,173.49,8.76277961]
[1754003190264,0.64723741,173.53,173.49,9.42277961]
[1754003190437,0.64723741,173.53,173.5,8.76277961]
[1754003190645,157.02277961,173.55,173.5,8.76277961]
[1754003190646,0.64723741,173.54,173.52,8.76277961]
[1754003191153,0.66,173.58,173.53,8.76277961]
[1754003191335,1.30723741,173.57,173.53,8.76277961]
[1754003192073,0.64723741,173.58,173.55,8.76277961]
[1754003192436,27.30723741,173.59,173.55,8.76277961]
[1754003192662,0.64723741,173.6,173.58,8.76277961]
[1754003193051,0.66,173.64,173.59,8.76277961]
[1754003193249,1.30723741,173.63,173.57,17.44468397]
[1754003193456,1.30723741,173.63,173.6,8.76277961]
[1754003193665,0.64723741,173.63,173.6,8.76277961]
[1754003194046,0.64723741,173.64,173.6,8.76277961]
[1754003194247,0.66,173.67,173.62,8.76277961]
[1754003194452,0.64723741,173.66,173.62,8.76277961]
[1754003194656,0.64723741,173.66,173.63,8.76277961]
[1754003194854,0.64723741,173.66,173.64,8.76277961]
[1754003195255,0.66,173.67,173.64,8.76277961]
[1754003195256,1.30723741,173.67,173.64,8.76277961]
[1754003195451,0.64723741,173.68,173.65,8.76277961]
[1754003195651,50.59277961,173.72,173.66,8.76277961]
[1754003195969,36.12001702,173.71,173.66,8.76277961]
[1754003196176,1.35723741,173.71,173.66,8.76277961]
[1754003196347,35.41001702,173.71,173.66,8.76277961]
[1754003196667,35.41001702,173.71,173.65,0.68]
[1754003196668,0.71,173.7,173.65,0.68]
[1754003196855,0.64723741,173.71,173.68,8.76277961]
[1754003197054,1.35723741,173.71,173.67,8.76277961]
[1754003197253,0.71,173.7,173.67,8.76277961]
[1754003197657,1.35723741,173.7,173.65,16.78468397]
[1754003197851,1.35723741,173.7,173.66,8.76277961]
[1754003198255,1.35723741,173.7,173.67,8.76277961]
[1754003198871,0.71,173.7,173.67,8.76277961]
[1754003200778,0.64723741,173.71,173.67,8.76277961]
[1754003200971,0.64723741,173.73,173.7,8.76277961]
[1754003201149,68.41723741,173.75,173.71,8.76277961]
[1754003201883,41.70723741,173.75,173.73,8.76277961]
[1754003202663,0.64723741,173.75,173.72,9.44277961]
[1754003202872,0.64723741,173.76,173.72,9.44277961]
[1754003203163,1.35723741,173.76,173.72,9.44277961]
[1754003203377,1.35723741,173.76,173.73,8.76277961]
[1754003203763,0.64723741,173.76,173.73,8.76277961]
[1754003203971,1.35723741,173.76,173.72,8.76277961]
[1754003204489,7.11239602,173.76,173.72,8.76277961]
[1754003204665,0.71,173.75,173.72,8.76277961]
[1754003204859,41.68723741,173.74,173.67,8.76277961]
[1754003205163,8.76277961,173.72,173.67,8.76277961]
[1754003205362,10.12001702,173.71,173.66,26.22746358]
[1754003205787,10.12001702,173.71,173.67,8.76277961]
[1754003205788,1.35723741,173.71,173.67,8.76277961]
[1754003206077,0.71,173.71,173.67,8.76277961]
[1754003206260,0.71,173.7,173.66,25.54746358]
[1754003206460,9.41001702,173.71,173.67,9.44277961]
[1754003206461,0.64723741,173.71,173.67,9.44277961]
[1754003206661,0.64723741,173.71,173.68,8.76277961]
[1754003207063,0.64723741,173.71,173.67,9.44277961]
[1754003207258,0.64723741,173.71,173.68,8.76277961]
[1754003207872,0.64723741,173.72,173.68,8.76277961]
[1754003208067,0.64723741,173.72,173.67,0.68]
[1754003208068,10.12001702,173.72,173.67,0.68]
[1754003208367,1.35723741,173.72,173.68,8.76277961]
[1754003208890,1.35723741,173.72,173.69,8.76277961]
[1754003209759,0.64723741,173.72,173.69,8.76277961]
[1754003209962,147.6,173.73,173.71,8.76277961]
[1754003210189,147.6,173.73,173.72,9.44277961]
[1754003210370,40.98,173.76,173.72,9.44277961]
[1754003210566,40.98,173.76,173.73,8.76277961]
[1754003211780,0.64723741,173.75,173.73,8.76277961]
[1754003212501,0.64723741,173.77,173.74,8.76277961]
[1754003212664,26.71,173.79,173.75,8.76277961]
[1754003212870,0.64723741,173.78,173.75,8.76277961]
[1754003213770,1.35723741,173.78,173.75,8.76277961]
[1754003214383,0.71,173.77,173.74,8.76277961]
[1754003214679,0.71,173.77,173.71,16.78468397]
[1754003214680,0.64723741,173.76,173.72,8.76277961]
[1754003214876,0.64723741,173.76,173.7,16.78468397]
[1754003214877,9.47277961,173.75,173.7,16.78468397]
[1754003215200,1.35723741,173.74,173.7,25.54746358]
[1754003215403,10.12001702,173.74,173.69,8.76277961]
[1754003215694,9.47277961,173.73,173.68,8.76277961]
[1754003215869,9.47277961,173.73,173.69,8.76277961]
[1754003216070,0.64723741,173.72,173.69,8.76277961]
[1754003216310,9.47277961,173.73,173.69,8.76277961]
[1754003216513,1.35723741,173.72,173.68,8.76277961]
[1754003217299,0.71,173.71,173.67,25.54746358]
[1754003217472,0.64723741,173.72,173.68,8.76277961]
[1754003217680,51.08001702,173.75,173.7,8.76277961]
[1754003218202,51.08001702,173.75,173.7,9.44277961]
[1754003218781,153.35481606,173.77,173.73,8.76277961]
[1754003218782,41.60723741,173.76,173.73,8.76277961]
[1754003219218,40.96,173.76,173.75,8.76277961]
[1754003219508,147.6,173.77,173.74,0.68]
[1754003219891,40.96,173.79,173.74,0.68]
[1754003220094,0.64723741,173.82,173.78,8.76277961]
[1754003220417,41.60723741,173.82,173.79,8.76277961]
[1754003220709,1.35723741,173.82,173.79,8.76277961]
[1754003221086,0.71,173.82,173.79,8.76277961]
[1754003221280,188.56,173.83,173.8,8.76277961]
[1754003221477,147.6,173.83,173.82,8.76277961]
[1754003221702,40.94,173.85,173.82,8.76277961]
[1754003222306,0.64723741,173.86,173.77,17.36015729]
[1754003222547,0.71,173.87,173.85,8.76277961]
[1754003222548,0.64723741,173.87,173.85,8.76277961]
[1754003222891,0.64723741,173.88,173.85,8.76277961]
[1754003223104,1.35723741,173.88,173.85,8.76277961]
[1754003223896,0.64723741,173.88,173.85,8.76277961]
[1754003226931,0.72,173.87,173.83,8.76277961]
[1754003227097,0.64723741,173.86,173.83,8.76277961]
[1754003227414,0.64723741,173.86,173.81,26.0]
[1754003227616,0.72,173.86,173.82,16.78468397]
[1754003227819,0.64723741,173.87,173.83,8.76277961]
[1754003228024,1.36723741,173.87,173.83,8.76277961]
[1754003229108,1.36723741,173.87,173.84,8.76277961]
[1754003229303,0.64723741,173.87,173.83,8.76277961]
[1754003229510,0.72,173.86,173.83,8.76277961]
[1754003229903,0.72,173.86,173.8,0.71]
[1754003230104,0.72,173.86,173.83,8.76277961]
[1754003230505,0.72,173.86,173.78,0.57544021]
[1754003230506,8.76277961,173.84,173.78,16.78468397]
[1754003230825,9.41001702,173.83,173.79,8.76277961]
[1754003231323,9.41001702,173.83,173.79,9.47277961]
[1754003231532,0.72,173.82,173.78,25.54746358]
[1754003231718,9.48277961,173.82,173.78,8.76277961]
[1754003231902,0.72,173.82,173.78,8.76277961]
[1754003232214,0.64723741,173.83,173.79,8.76277961]
[1754003232410,0.64723741,173.83,173.79,9.47277961]
[1754003233025,0.64723741,173.83,173.81,8.76277961]
[1754003233243,0.64723741,173.84,173.81,8.76277961]
[1754003233528,147.6,173.85,173.83,8.76277961]
[1754003233828,147.6,173.85,173.84,9.47277961]
[1754003234134,147.6,173.85,173.83,8.76277961]
[1754003235527,147.6,173.85,173.82,16.78468397]
[1754003235733,147.6,173.85,173.83,8.76277961]
[1754003237121,148.32,173.85,173.8,0.71]
[1754003237337,148.32,173.85,173.82,8.76277961]
[1754003237548,1.36723741,173.84,173.8,8.76277961]
[1754003237831,0.72,173.83,173.79,8.76277961]
[1754003238033,0.64723741,173.84,173.8,8.76277961]
[1754003238337,0.72,173.83,173.8,8.76277961]
[1754003239139,0.72,173.83,173.79,8.76277961]
[1754003239642,0.72,173.82,173.79,8.76277961]
[1754003239850,0.72,173.82,173.78,25.54746358]
[1754003240158,0.72,173.82,173.79,8.76277961]
[1754003241425,1.36723741,173.84,173.8,8.76277961]
[1754003241839,0.64723741,173.84,173.81,8.76277961]
[1754003242049,0.64723741,173.84,173.81,9.47277961]
[1754003242222,0.64723741,173.84,173.81,8.76277961]
[1754003242621,10.13001702,173.84,173.8,8.76277961]
[1754003242856,10.13001702,173.84,173.79,0.71]
[1754003243144,10.13001702,173.84,173.8,8.76277961]
[1754003243735,0.72,173.83,173.8,8.76277961]
[1754003245446,0.64723741,173.84,173.8,8.76277961]
[1754003245625,147.6,173.85,173.83,8.76277961]
[1754003245821,148.32,173.85,173.82,8.76277961]
[1754003246021,148.32,173.85,173.83,8.76277961]
[1754003246227,148.32,173.85,173.82,8.76277961]
[1754003246730,147.6,173.85,173.82,8.76277961]
[1754003246945,147.6,173.85,173.83,8.76277961]
[1754003247259,147.6,173.85,173.82,8.76277961]
[1754003247752,14.40551316,173.91,173.84,8.76277961]
[1754003247753,0.03,173.91,173.84,8.76277961]
[1754003247949,0.03,173.91,173.83,0.71]
[1754003247950,8.76277961,173.88,173.83,8.76277961]
[1754003248162,0.72,173.87,173.83,8.76277961]
[1754003248340,0.72,173.87,173.83,9.47277961]
[1754003248533,0.64723741,173.88,173.84,8.76277961]
[1754003248853,0.64723741,173.88,173.85,8.76277961]
[1754003249155,1.36723741,173.88,173.84,9.47277961]
[1754003249351,26.74723741,173.89,173.86,8.76277961]
[1754003249555,0.1,173.89,173.87,9.47277961]
[1754003249849,26.1,173.89,173.87,9.47277961]
[1754003250075,26.1,173.89,173.87,8.76277961]
[1754003250557,26.1,173.89,173.86,8.76277961]
[1754003250856,26.74723741,173.89,173.86,8.76277961]
[1754003251244,26.74723741,173.89,173.85,0.71]
[1754003251245,0.72,173.88,173.82,17.49468397]
[1754003251450,0.1,173.89,173.87,8.76277961]
[1754003252360,0.1,173.89,173.86,8.76277961]
[1754003252738,0.1,173.89,173.86,9.47277961]
[1754003253062,0.82,173.89,173.86,8.76277961]
[1754003253347,0.1,173.89,173.86,8.76277961]
[1754003253951,0.1,173.89,173.86,0.71]
[1754003254150,0.1,173.89,173.87,8.76277961]
[1754003254388,0.1,173.89,173.88,8.76277961]
[1754003254585,0.1,173.89,173.88,9.46277961]
[1754003254756,0.1,173.89,173.88,6.6010666]
[1754003254952,0.1,173.89,173.88,5.9010666]
[1754003255276,0.1,173.89,173.88,23.38575057]
[1754003257356,0.1,173.89,173.88,5.9010666]
[1754003257563,0.1,173.89,173.87,5.9010666]
[1754003257869,0.76,173.89,173.86,46.8010666]
[1754003258075,0.76,173.89,173.86,40.9]
[1754003258377,0.76,173.89,173.85,22.68575057]
[1754003258584,0.76,173.89,173.86,5.9010666]
[1754003258757,0.1,173.89,173.88,5.9010666]
[1754003259382,0.1,173.89,173.88,6.6010666]
[1754003260572,0.1,173.89,173.88,7.17617587]
[1754003260894,0.1,173.89,173.88,67.6995815]
[1754003261069,0.1,173.89,173.88,82.19046246]
[1754003262089,0.1,173.89,173.88,73.4506742]
[1754003262962,0.1,173.89,173.88,67.6995815]
[1754003263574,0.1,173.89,173.88,66.42447223]
[1754003265463,0.1,173.89,173.88,72.87556493]
[1754003267884,0.1,173.89,173.88,67.12447223]
[1754003268098,0.1,173.89,173.88,66.42447223]
[1754003268589,0.1,173.89,173.88,67.12447223]
[1754003268801,0.1,173.89,173.88,66.42447223]
[1754003269671,0.76,173.89,173.88,49.63978826]
[1754003269905,0.76,173.89,173.88,40.9]
[1754003270995,0.76,173.89,173.88,49.63978826]
[1754003271587,0.76,173.89,173.88,40.9]
[1754003271991,0.76,173.89,173.88,49.63978826]
[1754003273793,0.76,173.89,173.88,66.42447223]
[1754003273794,0.1,173.89,173.88,66.42447223]
[1754003273972,0.1,173.89,173.88,67.12447223]
[1754003274391,0.1,173.89,173.88,66.42447223]
[1754003274597,0.1,173.89,173.88,57.68468397]
[1754003274792,0.1,173.89,173.88,66.42447223]
[1754003275107,0.1,173.89,173.88,66.40447223]
[1754003275703,0.1,173.89,173.88,72.85556493]
[1754003276574,0.1,173.89,173.88,73.4306742]
[1754003277502,0.1,173.89,173.88,72.85556493]
[1754003278501,0.1,173.89,173.88,81.59535319]
[1754003279375,0.1,173.89,173.88,72.85556493]
[1754003280904,0.1,173.89,173.88,75.91072493]
[1754003281402,0.1,173.89,173.88,101.91072493]
[1754003281698,0.03,173.91,173.9,42.78468397]
[1754003281881,0.03,173.91,173.9,90.13720122]
[1754003282082,0.03,173.91,173.9,90.83720122]
[1754003283682,0.03,173.91,173.9,95.8876325]
[1754003284405,0.03,173.91,173.9,84.23972709]
[1754003284702,0.71,173.91,173.9,64.13720122]
[1754003285087,0.03,173.91,173.9,69.8876325]
[1754003285895,0.03,173.91,173.9,64.13720122]
[1754003286207,0.71,173.91,173.9,63.5621581]
[1754003287111,0.03,173.91,173.9,63.5621581]
[1754003287589,0.71,173.91,173.9,63.5621581]
[1754003288417,6.60747413,173.91,173.86,5.89747413]
[1754003288609,1.32723741,173.9,173.87,40.88]
[1754003288805,0.68,173.89,173.87,40.88]
[1754003288992,1.32723741,173.89,173.87,40.88]
[1754003289182,5.89747413,173.88,173.85,40.88]
[1754003289390,5.89747413,173.86,173.8,5.89747413]
[1754003289610,5.89747413,173.86,173.76,41.44]
[1754003289611,5.89747413,173.84,173.76,47.19495357]
[1754003289814,0.68,173.83,173.79,5.89747413]
[1754003290012,0.68,173.83,173.8,40.88]
[1754003290513,0.64723741,173.82,173.8,40.88]
[1754003290820,0.68,173.81,173.8,40.88]
[1754003291690,0.68,173.83,173.8,49.63310011]
[1754003291998,0.68,173.82,173.8,49.63310011]
[1754003293392,0.68,173.81,173.78,8.75310011]
[1754003293710,0.68,173.81,173.79,40.88]
[1754003294089,8.75310011,173.8,173.79,40.88]
[1754003294290,9.43310011,173.8,173.75,8.75310011]
[1754003294533,10.08033752,173.79,173.76,40.88]
[1754003294820,14.37825891,173.88,173.76,40.88]
[1754003294821,0.68,173.78,173.76,40.88]
[1754003297532,0.68,173.77,173.76,40.88]
[1754003298638,0.68,173.77,173.72,16.78468397]
[1754003298938,10.08033752,173.77,173.73,40.88]
[1754003299105,0.68,173.76,173.73,49.63310011]
[1754003299309,0.68,173.76,173.74,8.75310011]
[1754003299502,1.32723741,173.78,173.74,8.75310011]
[1754003299737,0.68,173.77,173.75,40.88]
[1754003301522,27.32723741,173.8,173.76,8.75310011]
[1754003301715,27.32723741,173.8,173.75,49.63310011]
[1754003301716,0.68,173.79,173.75,49.63310011]
[1754003301909,27.32723741,173.8,173.77,8.75310011]
[1754003302117,0.68,173.8,173.77,49.65310011]
[1754003302503,147.6,173.81,173.77,49.65310011]
[1754003302707,0.68,173.82,173.79,8.75310011]
[1754003303020,0.68,173.83,173.8,8.75310011]
[1754003303829,1.32723741,173.82,173.74,0.7]
[1754003304040,0.68,173.81,173.76,8.75310011]